[Event "Serbian League Women 2024"]
[Site "Bajina Basta"]
[Date "2024.09.29"]
[Round "3.17"]
[White "Bivol, Alina"]
[Black "Muetsch, Annmarie"]
[Result "1-0"]
[ECO "B07"]
[WhiteElo "2345"]
[BlackElo "2290"]
[Annotator "RC"]
[PlyCount "107"]
[EventDate "2024.09.26"]
[EventType "team-tourn"]
[EventCountry "SRB"]
[SourceTitle "playchess.com"]
[Source "ChessBase"]
[SourceQuality "1"]
[TimeControl "40/5400+30:1800+30"]

1. e4 {[%emt 0:00:20]} d6 {[%emt 0:00:27]} 2. d4 {[%emt 0:00:44]} Nf6 {[%emt 0:00:07]} 3. Bd3 {[%emt 0:00:04]} e5 {[%emt 0:00:24]} 4. c3 {[%emt 0:00:06]} d5 {[%emt 0:00:20]} 5. dxe5 {[%emt 0:00:07]} Nxe4 {[%emt 0:00:11]} 6. Nf3 {[%emt 0:00:10]} Nc6 {[%emt 0:01:51]} 7. Nbd2 {[%emt 0:00:32]} Nc5 {[%emt 0:00:13]} 8. Nb3 {[%emt 0:00:05]} Nxd3+ {[%emt 0:00:13]} 9. Qxd3 {[%emt 0:00:04]} Be7 {[%emt 0:00:13]} 10. O-O {[%emt 0:00:09]} O-O {[%emt 0:00:18]} 11. Bf4 {[%emt 0:00:59]} Be6 {[%emt 0:01:27]} 12. Rad1 {[%emt 0:00:21]} Nb8 {[%emt 0:17:21]} 13. Nbd4 {[%emt 0:13:12]} Nd7 {[%emt 0:14:29]} 14. Rfe1 {[%emt 0:04:08]} c6 {[%emt 0:04:39]} 15. Qc2 {[%emt 0:06:18]} Bg4 {[%emt 0:07:18]} 16. h3 {[%emt 0:03:04]} Bh5 {[%emt 0:09:34]} 17. b4 {[%emt 0:00:57]} a5 {[%emt 0:01:20]} 18. b5 {[%emt 0:01:43]} Bg6 {[%emt 0:06:10]} 19. Qe2 {[%emt 0:03:04]} c5 {[%emt 0:00:45]} 20. e6 {[%emt 0:07:16]} cxd4 {[%emt 0:06:35]} 21. exd7 {[%emt 0:00:09]} Bf6 {[%emt 0:04:10]} 22. Bd6 {[%emt 0:04:18]} d3 {[%emt 0:00:13]} 23. Qb2 {[%emt 0:02:49]} Qxd7 {[%emt 0:00:32]} 24. Bxf8 Rxf8 {[%emt 0:00:06]} 25. Ne5 {[%emt 0:03:25]} Bxe5 {[%emt 0:00:06]} 26. Rxe5 {[%emt 0:00:05]} Qd6 {[%emt 0:07:51]} 27. Re3 {[%emt 0:12:45]} h6 {[%emt 0:00:53]} 28. h4 {[%emt 0:09:29]} h5 {[%emt 0:01:37]} 29. Rdxd3 {[%emt 0:04:15]} Bxd3 {[%emt 0:00:18]} 30. Rxd3 {[%emt 0:00:04]} Qc5 {[%emt 0:03:22]} 31. Qd2 {[%emt 0:04:09]} Rd8 {[%emt 0:01:43]} 32. a4 {[%emt 0:04:08]} g6 {[%emt 0:00:57]} 33. Qg5 {[%emt 0:01:22]} Rc8 {[%emt 0:01:43]} 34. Qf6 {[%emt 0:02:36]} Qc4 {[%emt 0:02:08]} 35. Rf3 {[%emt 0:00:06]} Rf8 {[%emt 0:00:08]} 36. Rf4 {[%emt 0:00:21]} Qd3 {[%emt 0:00:22]} 37. g4 {[%emt 0:00:52]} hxg4 {[%emt 0:02:41]} 38. h5 {[%emt 0:00:41]} g3 {[%emt 0:03:56]} 39. h6 {[%emt 0:05:44]} gxf2+ {[%emt 0:00:08]} 40. Rxf2 {[%emt 0:04:48]} Qd1+ {[%emt 0:01:06]} 41. Rf1 {[%emt 0:30:43]} Qg4+ {[%emt 0:30:06]} 42. Kf2 {[%emt 0:00:05]} Qf5+ {[%emt 0:00:11]} 43. Qxf5 {[%emt 0:00:01]} gxf5 {[%emt 0:00:07]} 44. Ke3 {[%emt 0:00:07]} Rc8 {[%emt 0:00:00]} 45. Kd4 {[%emt 0:00:00]} Rc4+ {[%emt 0:00:00]} 46. Kxd5 {[%emt 0:00:00]} Rxc3 {[%emt 0:00:00]} 47. Rxf5 {[%emt 0:00:00]} Rh3 {[%emt 0:00:00]} 48. Rf6 {[%emt 0:00:00]} Kf8 {[%emt 0:00:00]} 49. Kd6 {[%emt 0:00:00]} Ke8 {[%emt 0:00:00]} 50. Kc7 {[%emt 0:00:00]} Ke7 {[%emt 0:00:00]} 51. Rf4 {[%emt 0:00:00]} Rxh6 {[%emt 0:00:00]} 52. Kxb7 {[%emt 0:00:00]} Kd6 {[%emt 0:03:56]} 53. b6 {[%emt 0:00:00]} Kc5 {[%emt 0:02:45]} 54. Ka7 {[%emt 0:00:00]} 1-0

[Event "Serbian League Women 2024"]
[Site "Bajina Basta"]
[Date "2024.09.29"]
[Round "3.18"]
[White "Brunello, Marina"]
[Black "Velikic, Adela"]
[Result "0-1"]
[ECO "B32"]
[WhiteElo "2348"]
[BlackElo "2260"]
[Annotator "RC"]
[PlyCount "124"]
[EventDate "2024.09.26"]
[EventType "team-tourn"]
[EventCountry "SRB"]
[SourceTitle "playchess.com"]
[Source "ChessBase"]
[SourceQuality "1"]
[TimeControl "40/5400+30:1800+30"]

1. e4 {[%emt 0:00:03]} c5 {[%emt 0:00:09]} 2. Nf3 {[%emt 0:00:11]} Nc6 {[%emt 0:00:08]} 3. d4 {[%emt 0:00:09]} cxd4 {[%emt 0:00:08]} 4. Nxd4 {[%emt 0:00:06]} e5 {[%emt 0:00:06]} 5. Nb5 {[%emt 0:00:12]} d6 {[%emt 0:00:07]} 6. c4 {[%emt 0:00:04]} g6 {[%emt 0:00:07]} 7. Bd3 {[%emt 0:00:13]} a6 {[%emt 0:00:23]} 8. N5c3 {[%emt 0:00:06]} Nf6 {[%emt 0:00:15]} 9. Be2 {[%emt 0:01:52]} Bg7 {[%emt 0:06:58]} 10. Be3 {[%emt 0:00:06]} O-O {[%emt 0:02:15]} 11. O-O {[%emt 0:00:17]} Be6 {[%emt 0:11:05]} 12. Na3 {[%emt 0:01:11]} Nd4 {[%emt 0:07:53]} 13. Rc1 {[%emt 0:30:53]} Rc8 {[%emt 0:08:17]} 14. h3 {[%emt 0:13:19]} Nd7 {[%emt 0:03:14]} 15. b3 {[%emt 0:03:54]} f5 {[%emt 0:10:15]} 16. f3 {[%emt 0:05:01]} Qa5 {[%emt 0:06:23]} 17. Nab1 {[%emt 0:00:42]} b5 {[%emt 0:14:36]} 18. Nd2 {[%emt 0:06:48]} Nb6 {[%emt 0:10:55]} 19. Nd5 {[%emt 0:04:20]} Bxd5 {[%emt 0:08:47]} 20. exd5 {[%emt 0:00:06]} Qa3 {[%emt 0:07:49]} 21. Bxd4 {[%emt 0:04:48]} exd4 {[%emt 0:00:01]} 22. cxb5 {[%emt 0:00:08]} axb5 {[%emt 0:00:44]} 23. Bxb5 {[%emt 0:00:38]} Qxa2 {[%emt 0:00:43]} 24. Rc6 {[%emt 0:00:34]} Qa5 {[%emt 0:00:38]} 25. Qe2 {[%emt 0:00:28]} Rce8 {[%emt 0:00:14]} 26. Nc4 {[%emt 0:02:24]} Qxb5 {[%emt 0:00:39]} 27. Rxb6 {[%emt 0:00:04]} Qxd5 {[%emt 0:00:37]} 28. Qd3 {[%emt 0:01:47]} Re6 {[%emt 0:00:15]} 29. Ra6 {[%emt 0:05:08]} Rfe8 {[%emt 0:00:42]} 30. Rfa1 {[%emt 0:00:51]} h6 {[%emt 0:00:31]} 31. Ra7 {[%emt 0:01:52]} Re1+ {[%emt 0:00:20]} 32. Rxe1 {[%emt 0:01:15]} Rxe1+ {[%emt 0:00:02]} 33. Kf2 {[%emt 0:00:04]} Re8 {[%emt 0:00:51]} 34. Rd7 {[%emt 0:00:29]} Qe6 {[%emt 0:00:21]} 35. Rxg7+ {[%emt 0:00:06]} Kxg7 {[%emt 0:00:03]} 36. Qxd4+ {[%emt 0:00:04]} Kh7 {[%emt 0:00:18]} 37. Kg1 {[%emt 0:00:17]} d5 {[%emt 0:00:41]} 38. Nb6 {[%emt 0:00:11]} Qe1+ {[%emt 0:01:26]} 39. Kh2 {[%emt 0:00:03]} Qe5+ {[%emt 0:00:28]} 40. Qxe5 {[%emt 0:00:08]} Rxe5 {[%emt 0:00:03]} 41. Nd7 {[%emt 0:30:35]} Re3 {[%emt 0:04:52]} 42. Nf6+ {[%emt 0:00:00]} Kg7 {[%emt 0:00:05]} 43. Nxd5 {[%emt 0:00:00]} Rxb3 {[%emt 0:00:18]} 44. Nf4 {[%emt 0:00:00]} Rb4 {[%emt 0:01:50]} 45. Ne2 {[%emt 0:00:00]} Rc4 {[%emt 0:00:51]} 46. Kg3 {[%emt 0:00:00]} g5 {[%emt 0:03:00]} 47. f4 {[%emt 0:00:00]} Kf6 {[%emt 0:06:42]} 48. Kf3 {[%emt 0:00:00]} Ra4 {[%emt 0:00:38]} 49. Ke3 {[%emt 0:00:00]} Ra2 {[%emt 0:03:20]} 50. Kf3 {[%emt 0:00:00]} Ra3+ {[%emt 0:01:29]} 51. Kf2 {[%emt 0:00:00]} Rd3 {[%emt 0:02:11]} 52. Nc1 {[%emt 0:00:00]} Rd1 {[%emt 0:00:42]} 53. Ne2 {[%emt 0:00:00]} Ke6 {[%emt 0:01:59]} 54. Ke3 {[%emt 0:00:00]} Re1 {[%emt 0:05:44]} 55. Kf2 {[%emt 0:00:00]} Ra1 {[%emt 0:00:25]} 56. Nd4+ {[%emt 0:00:00]} Kf6 {[%emt 0:00:25]} 57. Ne2 {[%emt 0:00:00]} Ra3 {[%emt 0:00:06]} 58. Ke1 {[%emt 0:00:00]} g4 {[%emt 0:02:27]} 59. h4 {[%emt 0:00:00]} g3 {[%emt 0:00:37]} 60. Nd4 {[%emt 0:00:00]} Rd3 {[%emt 0:01:50]} 61. Nf3 {[%emt 0:00:00]} Re3+ {[%emt 0:00:18]} 62. Kd2 {[%emt 0:00:00]} Rxf3 {[%emt 0:00:14]} 0-1

[Event "Serbian League Women 2024"]
[Site "Bajina Basta"]
[Date "2024.09.29"]
[Round "3.19"]
[White "Zhurova, Anna"]
[Black "Mehmed, Elif"]
[Result "0-1"]
[ECO "B33"]
[WhiteElo "2199"]
[BlackElo "2228"]
[Annotator "RC"]
[PlyCount "102"]
[EventDate "2024.09.26"]
[EventType "team-tourn"]
[EventCountry "SRB"]
[SourceTitle "playchess.com"]
[Source "ChessBase"]
[SourceQuality "1"]
[TimeControl "40/5400+30:1800+30"]

1. e4 {[%emt 0:00:01]} c5 {[%emt 0:00:15]} 2. Nf3 {[%emt 0:00:23]} Nc6 {[%emt 0:00:07]} 3. d4 {[%emt 0:00:07]} cxd4 {[%emt 0:00:07]} 4. Nxd4 {[%emt 0:00:04]} Nf6 {[%emt 0:00:06]} 5. Nc3 {[%emt 0:00:05]} e5 {[%emt 0:00:06]} 6. Ndb5 {[%emt 0:00:15]} d6 {[%emt 0:00:06]} 7. Bg5 {[%emt 0:00:06]} a6 {[%emt 0:00:07]} 8. Na3 {[%emt 0:00:04]} b5 {[%emt 0:00:06]} 9. Nd5 {[%emt 0:00:04]} Be7 {[%emt 0:00:06]} 10. Bxf6 {[%emt 0:00:05]} Bxf6 {[%emt 0:00:06]} 11. c3 {[%emt 0:00:04]} O-O {[%emt 0:00:16]} 12. h4 {[%emt 0:00:05]} Rb8 {[%emt 0:10:48]} 13. Nc2 {[%emt 0:00:08]} a5 {[%emt 0:00:08]} 14. Qf3 {[%emt 0:10:27]} b4 {[%emt 0:06:09]} 15. Bc4 {[%emt 0:03:22]} bxc3 {[%emt 0:04:24]} 16. bxc3 {[%emt 0:00:30]} a4 {[%emt 0:02:39]} 17. Nce3 {[%emt 0:06:16]} Na5 {[%emt 0:07:36]} 18. Be2 {[%emt 0:07:47]} Be6 {[%emt 0:05:07]} 19. g3 {[%emt 0:01:43]} Nb7 {[%emt 0:04:41]} 20. Rd1 {[%emt 0:01:51]} Nc5 {[%emt 0:05:06]} 21. O-O {[%emt 0:07:34]} Be7 {[%emt 0:11:06]} 22. Rd2 {[%emt 0:02:12]} Qd7 {[%emt 0:04:03]} 23. Rfd1 {[%emt 0:01:49]} Bd8 {[%emt 0:03:45]} 24. Nb4 {[%emt 0:05:05]} Qb7 {[%emt 0:02:48]} 25. Qg2 {[%emt 0:04:46]} Ba5 {[%emt 0:02:57]} 26. Nbd5 {[%emt 0:03:28]} Qa7 {[%emt 0:05:04]} 27. h5 {[%emt 0:00:58]} Bd8 {[%emt 0:03:54]} 28. Nb4 {[%emt 0:01:30]} Qb7 {[%emt 0:06:23]} 29. h6 {[%emt 0:14:53]} g6 {[%emt 0:01:19]} 30. Rxd6 {[%emt 0:00:11]} Be7 {[%emt 0:00:56]} 31. Rc6 {[%emt 0:00:50]} Rfd8 {[%emt 0:01:20]} 32. Ned5 {[%emt 0:02:55]} Bxd5 {[%emt 0:07:36]} 33. exd5 {[%emt 0:01:16]} Bd6 {[%emt 0:00:28]} 34. Bc4 {[%emt 0:08:54]} e4 {[%emt 0:02:44]} 35. Re1 {[%emt 0:05:25]} f5 {[%emt 0:00:30]} 36. g4 {[%emt 0:02:11]} Kh8 {[%emt 0:01:55]} 37. Qh3 {[%emt 0:02:47]} f4 {[%emt 0:01:08]} 38. Qh4 {[%emt 0:09:19]} Qf7 {[%emt 0:00:57]} 39. Rxc5 {[%emt 0:00:00]} g5 {[%emt 0:01:47]} 40. Qh1 {[%emt 0:00:00]} Bxc5 {[%emt 0:00:42]} 41. Rxe4 {[%emt 0:30:44]} f3 {[%emt 0:09:29]} 42. Na6 {[%emt 0:00:00]} Rb1+ {[%emt 0:02:03]} 43. Bf1 {[%emt 0:00:00]} Rxd5 {[%emt 0:00:38]} 44. Qh3 {[%emt 0:00:00]} Bd6 {[%emt 0:03:40]} 45. Nc7 {[%emt 0:00:00]} Re5 {[%emt 0:03:59]} 46. Rxe5 {[%emt 0:00:00]} Bxe5 {[%emt 0:00:10]} 47. Ne6 {[%emt 0:00:00]} Qxe6 {[%emt 0:00:34]} 48. Qxf3 {[%emt 0:00:00]} Qxh6 {[%emt 0:00:42]} 49. Qa8+ {[%emt 0:00:00]} Bb8 {[%emt 0:00:33]} 50. Qg2 {[%emt 0:00:00]} Qh2+ {[%emt 0:00:10]} 51. Qxh2 {[%emt 0:00:00]} Bxh2+ {[%emt 0:00:03]} 0-1

[Event "Serbian League Women 2024"]
[Site "Bajina Basta"]
[Date "2024.09.29"]
[Round "3.20"]
[White "Manakova, Maria"]
[Black "Srdanovic, Jovana"]
[Result "1-0"]
[ECO "B12"]
[WhiteElo "2185"]
[BlackElo "2142"]
[Annotator "RC"]
[PlyCount "93"]
[EventDate "2024.09.26"]
[EventType "team-tourn"]
[EventCountry "SRB"]
[SourceTitle "playchess.com"]
[Source "ChessBase"]
[SourceQuality "1"]
[TimeControl "40/5400+30:1800+30"]

1. e4 {[%emt 0:00:05]} c6 {[%emt 0:00:05]} 2. d4 {[%emt 0:00:04]} d5 {[%emt 0:00:04]} 3. f3 {[%emt 0:00:22]} g6 {[%emt 0:00:05]} 4. e5 {[%emt 0:01:23]} Bg7 {[%emt 0:00:13]} 5. f4 {[%emt 0:00:07]} f6 {[%emt 0:00:55]} 6. Nf3 {[%emt 0:00:30]} Nh6 {[%emt 0:01:01]} 7. Be2 {[%emt 0:01:18]} O-O {[%emt 0:02:49]} 8. O-O {[%emt 0:00:29]} Bg4 {[%emt 0:01:07]} 9. c3 {[%emt 0:03:34]} Qb6 {[%emt 0:11:26]} 10. Qb3 {[%emt 0:08:22]} Nd7 {[%emt 0:04:55]} 11. Qxb6 {[%emt 0:18:56]} axb6 {[%emt 0:02:04]} 12. Na3 {[%emt 0:01:41]} b5 {[%emt 0:05:27]} 13. Nc2 {[%emt 0:00:27]} Nb6 {[%emt 0:00:51]} 14. b3 {[%emt 0:04:01]} Rfe8 {[%emt 0:19:53]} 15. Ne3 {[%emt 0:12:36]} Bxf3 {[%emt 0:03:51]} 16. Bxf3 {[%emt 0:01:02]} e6 {[%emt 0:12:23]} 17. g4 {[%emt 0:05:42]} Nf7 {[%emt 0:05:13]} 18. h4 {[%emt 0:04:58]} Nd7 {[%emt 0:03:05]} 19. g5 {[%emt 0:04:58]} f5 {[%emt 0:00:24]} 20. Rf2 {[%emt 0:00:51]} Bf8 {[%emt 0:00:50]} 21. c4 {[%emt 0:03:28]} Bb4 {[%emt 0:08:22]} 22. Bd2 {[%emt 0:00:32]} Bxd2 {[%emt 0:00:34]} 23. Rxd2 {[%emt 0:00:03]} bxc4 {[%emt 0:01:28]} 24. bxc4 {[%emt 0:00:05]} Ra3 {[%emt 0:00:33]} 25. Kf2 {[%emt 0:00:37]} Nb6 {[%emt 0:05:52]} 26. Rb1 {[%emt 0:04:49]} Nxc4 {[%emt 0:02:48]} 27. Nxc4 {[%emt 0:01:05]} dxc4 {[%emt 0:00:04]} 28. Rxb7 {[%emt 0:00:07]} Rea8 {[%emt 0:03:53]} 29. Bxc6 {[%emt 0:02:02]} c3 {[%emt 0:01:27]} 30. Rc2 {[%emt 0:00:53]} Nd8 {[%emt 0:02:34]} 31. Rc7 {[%emt 0:00:56]} Nxc6 {[%emt 0:00:37]} 32. Rxc6 {[%emt 0:00:05]} Rxa2 {[%emt 0:00:12]} 33. R6xc3 {[%emt 0:01:10]} R8a3 {[%emt 0:00:37]} 34. Rc8+ {[%emt 0:01:17]} Kf7 {[%emt 0:00:11]} 35. R8c7+ {[%emt 0:00:14]} Kf8 {[%emt 0:00:26]} 36. Rxa2 {[%emt 0:00:17]} Rxa2+ {[%emt 0:00:05]} 37. Ke3 {[%emt 0:00:09]} Ra3+ {[%emt 0:00:16]} 38. Ke2 {[%emt 0:01:52]} Ra2+ {[%emt 0:01:48]} 39. Kd3 {[%emt 0:00:09]} Rf2 {[%emt 0:00:35]} 40. Ke3 {[%emt 0:00:09]} Rh2 {[%emt 0:00:40]} 41. Rxh7 {[%emt 0:30:36]} Rh3+ {[%emt 0:30:39]} 42. Ke2 {[%emt 0:00:59]} Rh2+ {[%emt 0:00:00]} 43. Kd3 {[%emt 0:00:00]} Rf2 {[%emt 0:00:00]} 44. Kc4 {[%emt 0:00:00]} Rxf4 {[%emt 0:00:00]} 45. Kc5 {[%emt 0:00:00]} Kg8 {[%emt 0:00:00]} 46. Re7 {[%emt 0:00:00]} Rxh4 {[%emt 0:00:00]} 47. Rxe6 {[%emt 0:00:00]} 1-0

[Event "Serbian League Women 2024"]
[Site "Bajina Basta"]
[Date "2024.09.29"]
[Round "3.21"]
[White "Aydin, Gulenay"]
[Black "Badelka, Olga"]
[Result "0-1"]
[ECO "B03"]
[WhiteElo "2202"]
[BlackElo "2430"]
[Annotator "TA"]
[PlyCount "70"]
[EventDate "2024.09.26"]
[EventType "team-tourn"]
[EventCountry "SRB"]
[SourceTitle "playchess.com"]
[Source "ChessBase"]
[SourceQuality "1"]
[TimeControl "40/5400+30:1800+30"]

{[%evp 27,70,42,34,0,0,-41,-45,-28,-29,-46,-44,-42,-25,-66,-39,-239,-245,-237,-171,-185,-189,-157,-96,-97,-108,-172,-175,-151,-146,-212,-192,-208,-208,-196,-182,-238,-233,-348,-363,-414,-408,-959,-951,-943,-942]} 1. e4 {[%emt 0:00:03][%cal Be2e4,Be4e5][%mdl 32]} Nf6 {[%emt 0:00:05]} 2. e5 {[%emt 0:01:47]} Nd5 {[%emt 0:00:04]} 3. c4 {[%emt 0:02:35]} Nb6 {[%emt 0:00:04]} 4. d4 {[%emt 0:00:04]} d6 {[%emt 0:00:08]} 5. f4 {[%emt 0:00:21]} dxe5 {[%emt 0:00:25]} 6. fxe5 {[%emt 0:00:08]} Nc6 {[%emt 0:00:12]} 7. Be3 {[%emt 0:00:45]} Bf5 {[%emt 0:00:19]} 8. Nc3 {[%emt 0:02:04]} e6 {[%emt 0:00:06]} 9. Be2 {[%emt 0:04:28]} Be7 {[%emt 0:00:07]} 10. Nf3 {[%emt 0:00:12]} O-O {[%emt 0:00:07]} 11. O-O {[%emt 0:00:09]} f6 {[%emt 0:00:05]} 12. exf6 {[%emt 0:10:24]} Bxf6 {[%emt 0:00:09]} 13. Qd2 {[%emt 0:06:10]} Qe7 {[%emt 0:00:09]} 14. Rad1 {[%emt 0:01:59]} Rad8 {[%emt 0:00:13]} 15. Qe1 {[%emt 0:07:06]} Nb4 {[%emt 0:20:38]} 16. Qg3 {[%emt 0:05:41]} Nc2 {[%emt 0:04:58]} 17. Bf2 {[%emt 0:00:45] Black is slightly better.} Qb4 {[%emt 0:01:23][%csl LRb2,LRc4]} 18. c5 {[%emt 0:19:01]} Nc4 {[%emt 0:29:33]} 19. Bxc4 {[%emt 0:25:11]} Qxc4 {[%emt 0:00:03]} 20. Qxc7 {[%emt 0:00:47][%cal Of3e5]} Bd3 {[%emt 0:05:24] Black is more active. A strong pair of Bishops.} (20... Bxd4 $2 21. Bxd4 Nxd4 22. Ne5 $16) 21. Rfe1 {[%emt 0:05:20] [#]} Nxe1 $19 {[%emt 0:01:51]} ({Inferior is} 21... Nxd4 22. Ne5 Bxe5 23. Qxe5 $16) 22. Rxe1 {[%emt 0:00:02]} Bxd4 {[%emt 0:04:12]} 23. Bxd4 {[%emt 0:02:26]} Rxd4 {[%emt 0:00:03]} 24. Qe5 {[%emt 0:01:47]} Rg4 {[%emt 0:09:47]} (24... Rdf4 $142 {...R4f5 would now be deadly.} 25. Qxe6+ Qxe6 26. Rxe6 Rc4) 25. Qe3 {[%emt 0:01:14][%cal Of3e5] [#] Strongly threatening Ne5!} Rgf4 $1 {[%emt 0:07:02]} 26. Qxe6+ {[%emt 0:01:22]} (26. h3 $17 {was necessary.} Bg6 27. b3) 26... Qxe6 {[%emt 0:00:03]} 27. Rxe6 {[%emt 0:00:02]} Bg6 {[%emt 0:04:21]} 28. Nd5 {[%emt 0:01:43]} (28. Re7 $17 {was worth a try.}) 28... Rc4 {[%emt 0:02:31][%cal Og6f7]} 29. Ne7+ {[%emt 0:00:40]} Kh8 {[%emt 0:00:04]} 30. Nxg6+ {[%emt 0:00:36]} hxg6 {[%emt 0:00:05] KRR-KRN} 31. h3 {[%emt 0:00:26]} (31. Re7 $142) 31... Rxc5 {[%emt 0:01:05]} 32. Ne5 {[%emt 0:00:24]} (32. Re2 $142) 32... Kh7 {[%emt 0:03:47]} 33. Kh2 {[%emt 0:00:14][%cal Oe5d7]} Rc2 {[%emt 0:00:36]} 34. Rxg6 {[%emt 0:01:02]} (34. Nd3 $142) 34... Rf5 {[%emt 0:00:09]} 35. Re6 {[%emt 0:00:17]} Re2 {[%emt 0:00:15] Weighted Error Value: White=0.60/Black=0.09 (flawless) .  Loses game:     	White=1     	---        Mistake:       	White=5     	Black=1      Inaccurate:     	White=2     	---        OK:         	White=5     	Black=9      Best:        	---       	Black=4      Strong:       	---       	Black=1} 0-1

[Event "Serbian League Women 2024"]
[Site "Bajina Basta"]
[Date "2024.09.29"]
[Round "3.22"]
[White "Zimina, Olga"]
[Black "Yildiz, Elif Zeren"]
[Result "1/2-1/2"]
[ECO "D02"]
[WhiteElo "2302"]
[BlackElo "1934"]
[Annotator "RC"]
[PlyCount "109"]
[EventDate "2024.09.26"]
[EventType "team-tourn"]
[EventCountry "SRB"]
[SourceTitle "playchess.com"]
[Source "ChessBase"]
[SourceQuality "1"]
[TimeControl "40/5400+30:1800+30"]

1. d4 {[%emt 0:00:04]} Nf6 {[%emt 0:00:10]} 2. Nf3 {[%emt 0:00:08]} e6 {[%emt 0:00:22]} 3. g3 {[%emt 0:00:06]} d5 {[%emt 0:00:04]} 4. Bg2 {[%emt 0:00:04]} Be7 {[%emt 0:00:04]} 5. O-O {[%emt 0:00:07]} O-O {[%emt 0:00:03]} 6. b3 {[%emt 0:01:44]} c5 {[%emt 0:00:06]} 7. dxc5 {[%emt 0:00:09]} Bxc5 {[%emt 0:00:07]} 8. Bb2 {[%emt 0:00:05]} Nc6 {[%emt 0:00:07]} 9. c4 {[%emt 0:00:08]} dxc4 {[%emt 0:00:06]} 10. Qc2 {[%emt 0:00:43]} Qe7 {[%emt 0:00:05]} 11. Qxc4 {[%emt 0:00:32]} e5 {[%emt 0:00:03]} 12. Rc1 {[%emt 0:00:57]} Bd6 {[%emt 0:02:18]} 13. Nbd2 {[%emt 0:00:31]} Bf5 {[%emt 0:10:08]} 14. Nh4 {[%emt 0:08:03]} Be6 {[%emt 0:00:30]} 15. Qd3 {[%emt 0:00:30]} Rfd8 {[%emt 0:07:21]} 16. Nf5 {[%emt 0:00:59]} Bxf5 {[%emt 0:04:55]} 17. Qxf5 {[%emt 0:00:12]} Nd4 {[%emt 0:00:39]} 18. Qd3 {[%emt 0:07:36]} Bc5 {[%emt 0:11:03]} 19. Ne4 {[%emt 0:02:44]} Nxe4 {[%emt 0:03:34]} 20. Bxe4 {[%emt 0:00:42]} h6 {[%emt 0:00:46]} 21. Qc4 {[%emt 0:03:18]} Bd6 {[%emt 0:08:04]} 22. e3 {[%emt 0:03:57]} Ne6 {[%emt 0:01:00]} 23. Bg2 {[%emt 0:07:37]} Rab8 {[%emt 0:03:25]} 24. Rc2 {[%emt 0:01:35]} b5 {[%emt 0:03:35]} 25. Qe2 {[%emt 0:00:30]} Nc5 {[%emt 0:04:11]} 26. Rac1 {[%emt 0:13:34]} e4 {[%emt 0:07:25]} 27. Qg4 {[%emt 0:00:33]} g6 {[%emt 0:05:32]} 28. Bd4 {[%emt 0:14:57]} h5 {[%emt 0:06:29]} 29. Qh4 {[%emt 0:00:27]} Qxh4 {[%emt 0:00:08]} 30. gxh4 {[%emt 0:00:05]} Nd3 {[%emt 0:00:06]} 31. Rd1 {[%emt 0:00:14]} f5 {[%emt 0:01:31]} 32. f3 {[%emt 0:06:29]} Be5 {[%emt 0:01:28]} 33. fxe4 {[%emt 0:04:41]} Bxd4 {[%emt 0:00:48]} 34. exd4 {[%emt 0:00:21]} Rxd4 {[%emt 0:04:07]} 35. exf5 {[%emt 0:00:19]} gxf5 {[%emt 0:03:36]} 36. Rcd2 {[%emt 0:09:01]} Rbd8 {[%emt 0:00:01]} 37. Bf1 {[%emt 0:11:32]} Ne5 {[%emt 0:00:24]} 38. Rxd4 {[%emt 0:00:44]} Rxd4 {[%emt 0:00:03]} 39. Rxd4 {[%emt 0:00:15]} Nf3+ {[%emt 0:00:04]} 40. Kf2 {[%emt 0:00:04]} Nxd4 {[%emt 0:00:18]} 41. Ke3 {[%emt 0:30:11]} Nc2+ {[%emt 0:30:22]} 42. Kf4 {[%emt 0:00:00]} Nb4 {[%emt 0:00:00]} 43. Bxb5 {[%emt 0:00:00]} Nxa2 {[%emt 0:00:00]} 44. Kxf5 {[%emt 0:00:00]} a5 {[%emt 0:00:00]} 45. Kg6 {[%emt 0:00:00]} Nc1 {[%emt 0:00:00]} 46. Bc4+ {[%emt 0:00:00]} Kh8 {[%emt 0:00:00]} 47. Kf7 {[%emt 0:00:00]} Nxb3 {[%emt 0:00:00]} 48. Bxb3 {[%emt 0:00:00]} a4 {[%emt 0:00:00]} 49. Bxa4 {[%emt 0:00:00]} Kh7 {[%emt 0:00:00]} 50. h3 {[%emt 0:00:00]} Kh8 {[%emt 0:00:00]} 51. Bd1 {[%emt 0:00:00]} Kh7 {[%emt 0:00:00]} 52. Bg4 {[%emt 0:00:00]} Kh8 {[%emt 0:00:00]} 53. Kg6 {[%emt 0:00:00]} Kg8 {[%emt 0:00:00]} 54. Kh6 {[%emt 0:00:00]} Kh8 {[%emt 0:00:00]} 55. Bxh5 {[%emt 0:00:19]} 1/2-1/2

[Event "Serbian League Women 2024"]
[Site "Bajina Basta"]
[Date "2024.09.29"]
[Round "3.23"]
[White "Vujcic, Milena"]
[Black "Vujovic, Vera"]
[Result "1/2-1/2"]
[ECO "C78"]
[WhiteElo "2076"]
[BlackElo "2175"]
[Annotator "RC"]
[PlyCount "78"]
[EventDate "2024.09.26"]
[EventType "team-tourn"]
[EventCountry "SRB"]
[SourceTitle "playchess.com"]
[Source "ChessBase"]
[SourceQuality "1"]
[TimeControl "40/5400+30:1800+30"]

1. e4 {[%emt 0:00:03]} e5 {[%emt 0:00:00]} 2. Nf3 {[%emt 0:00:06]} Nc6 {[%emt 0:00:01]} 3. Bb5 {[%emt 0:00:09]} a6 {[%emt 0:00:03]} 4. Ba4 {[%emt 0:00:07]} Nf6 {[%emt 0:00:05]} 5. O-O {[%emt 0:00:12]} b5 {[%emt 0:00:02]} 6. Bb3 {[%emt 0:00:06]} Bc5 {[%emt 0:00:03]} 7. c3 {[%emt 0:00:06]} d6 {[%emt 0:00:03]} 8. d4 {[%emt 0:00:08]} Bb6 {[%emt 0:00:03]} 9. Be3 {[%emt 0:00:14]} Bg4 {[%emt 0:03:11]} 10. Nbd2 {[%emt 0:00:27]} O-O {[%emt 0:00:42]} 11. h3 {[%emt 0:01:42]} Bh5 {[%emt 0:00:26]} 12. dxe5 {[%emt 0:00:29]} dxe5 {[%emt 0:00:25]} 13. Qe2 {[%emt 0:00:05]} Qe7 {[%emt 0:04:31]} 14. Bxb6 {[%emt 0:01:21]} cxb6 {[%emt 0:00:05]} 15. Bd5 {[%emt 0:00:45]} Rfc8 {[%emt 0:15:32]} 16. a4 {[%emt 0:07:43]} b4 {[%emt 0:01:48]} 17. g4 {[%emt 0:11:43]} Bg6 {[%emt 0:00:12]} 18. Nc4 {[%emt 0:01:36]} Qc5 {[%emt 0:06:32]} 19. cxb4 {[%emt 0:03:53]} Qxb4 {[%emt 0:00:17]} 20. Nfxe5 {[%emt 0:12:50]} Nxd5 {[%emt 0:03:11]} 21. exd5 {[%emt 0:05:02]} Nd4 {[%emt 0:00:52]} 22. Qe3 {[%emt 0:05:45]} f6 {[%emt 0:48:48]} 23. Nxg6 {[%emt 0:01:40]} Rxc4 {[%emt 0:00:07]} 24. Ne7+ {[%emt 0:00:35]} Kf8 {[%emt 0:00:41]} 25. Nc6 {[%emt 0:01:14]} Nxc6 {[%emt 0:00:25]} 26. dxc6 {[%emt 0:00:06]} Rxc6 {[%emt 0:08:41]} 27. Rfe1 {[%emt 0:04:23]} Rcc8 {[%emt 0:03:43]} 28. Qa3 {[%emt 0:06:54]} Qxa3 {[%emt 0:00:18]} 29. Rxa3 {[%emt 0:00:05]} Re8 {[%emt 0:00:34]} 30. Kf1 {[%emt 0:00:53]} Rad8 {[%emt 0:00:46]} 31. Rb3 {[%emt 0:01:19]} Rxe1+ {[%emt 0:00:23]} 32. Kxe1 {[%emt 0:00:06]} Rd6 {[%emt 0:00:03]} 33. Ke2 {[%emt 0:00:19]} Kf7 {[%emt 0:00:51]} 34. Ke3 {[%emt 0:00:57]} Ke6 {[%emt 0:02:52]} 35. Rc3 {[%emt 0:02:40]} Kd7 {[%emt 0:00:39]} 36. b3 {[%emt 0:00:19]} Re6+ {[%emt 0:01:35]} 37. Kd4 {[%emt 0:02:19]} Rd6+ {[%emt 0:00:00]} 38. Ke4 {[%emt 0:01:19]} Re6+ {[%emt 0:00:00]} 39. Kd4 {[%emt 0:00:05]} Rd6+ {[%emt 0:01:30]} 1/2-1/2